bitfinex-derivatives/quotes_SOLF0:USTF0_20251208
["timestamp","ask_amount","ask_price","bid_price","bid_amount"]
[1765191109856,3.03372739,139.04,138.98,9.86030462]
[1765191110063,61.16,139.03,138.99,3.21]
[1765191110253,61.16,139.03,138.99,9.86030462]
[1765191110563,6.4734,139.02,138.99,9.86030462]
[1765191110756,6.4734,139.02,139.0,0.0507034]
[1765191110757,6.52139508,139.02,139.0,0.0507034]
[1765191114757,6.4742,139.01,138.96,6.65030462]
[1765191115058,61.16,139.0,138.96,3.21]
[1765191115959,61.16,139.0,138.97,3.26357908]
[1765191116265,61.20745589,139.0,138.97,3.26357908]
[1765191116564,67.68195589,139.0,138.97,3.26357908]
[1765191116750,67.68195589,139.0,138.97,5.20705079]
[1765191117160,67.68195589,139.0,138.98,3.21]
[1765191119061,0.04745589,139.0,138.98,3.21]
[1765191120060,6.52185589,139.0,138.98,3.21]
[1765191120766,6.52185589,139.0,138.97,1.99705079]
[1765191120767,6.4749,138.99,138.97,0.05357908]
[1765191121564,6.4749,138.99,138.97,3.22357908]
[1765191123173,0.04745589,139.0,138.97,5.16705079]
[1765191123373,0.04745589,139.0,138.98,3.17]
[1765191124369,6.52175589,139.0,138.98,3.17]
[1765191125874,0.04745589,139.0,138.98,3.17]
[1765191126272,0.04745589,139.0,138.99,5.11347171]
[1765191127076,0.04745589,139.0,138.99,3.17]
[1765191139394,6.52165589,139.0,138.99,3.17]
[1765191139786,0.04745589,139.0,138.97,3.09357908]
[1765191140094,6.4752,138.98,138.97,3.09357908]
[1765191142004,6.4752,138.98,138.97,0.05357908]
[1765191143101,6.4761,138.96,138.94,3.04]
[1765191143999,6.52168115,138.96,138.94,3.093852]
[1765191144407,8.46515286,138.96,138.94,3.093852]
[1765191144602,8.46515286,138.96,138.94,0.053852]
[1765191146303,1.98905286,138.96,138.91,3.04]
[1765191147310,1.98905286,138.96,138.93,3.04]
[1765191147499,6.4769,138.95,138.93,3.04]
[1765191149002,6.4769,138.95,138.92,0.05097116]
[1765191149303,8.42067171,138.94,138.92,3.09097116]
[1765191150809,69.62067171,138.94,138.92,3.09097116]
[1765191151212,8.46545286,138.96,138.92,3.09097116]
[1765191151412,0.04558115,138.96,138.94,3.04]
[1765191153109,0.04558115,138.96,138.95,3.04]
[1765191153315,61.2,138.99,138.96,3.04]
[1765191154304,61.24846337,138.99,138.96,3.08778633]
[1765191154506,67.72326337,138.99,138.96,3.08778633]
[1765191155511,1.94347171,138.98,138.96,3.08778633]
[1765191155713,1.94347171,138.98,138.96,0.04778633]
[1765191155714,8.41877171,138.98,138.96,0.04778633]
[1765191156708,8.41877171,138.98,138.96,3.08778633]
[1765191161617,61.24846337,138.99,138.96,3.08778633]
[1765191161816,0.04846337,138.99,138.96,3.08778633]
[1765191162015,6.52326337,138.99,138.96,3.08778633]
[1765191164523,8.41887171,138.98,138.96,0.04778633]
[1765191167422,1.94347171,138.98,138.93,3.04]
[1765191167620,1.94347171,138.96,138.93,3.04]
[1765191168219,63.14347171,138.96,138.93,3.04]
[1765191168419,63.19170279,138.96,138.93,3.09214386]
[1765191168620,6.4768,138.95,138.93,3.09214386]
[1765191168822,63.19170279,138.96,138.93,3.09214386]
[1765191169022,61.24823108,138.96,138.93,3.09214386]
[1765191169226,61.24823108,138.96,138.94,2.99]
[1765191171231,67.72433108,138.96,138.94,2.99]
[1765191171620,69.66780279,138.96,138.94,2.99]
[1765191173432,69.66780279,138.96,138.93,9.70824661]
[1765191174026,6.4766,138.95,138.93,9.70824661]
[1765191174241,6.4766,138.95,138.93,3.04214386]
[1765191174431,6.4766,138.95,138.93,0.05214386]
[1765191177630,1.94347171,138.94,138.93,0.05214386]
[1765191178638,6.4766,138.95,138.93,0.05214386]
[1765191185442,6.477,138.94,138.93,0.05214386]
[1765191191146,103.80040009,138.94,138.89,6.66610275]
[1765191191348,61.2,138.93,138.89,3.23]
[1765191191544,61.2,138.93,138.88,6.66610275]
[1765191191545,61.2,138.93,138.91,3.23]
[1765191191751,67.6779,138.93,138.91,3.23]
[1765191192153,67.72952761,138.93,138.91,3.23]
[1765191193448,6.52952761,138.93,138.91,3.23]
[1765191194344,103.75400009,139.0,138.93,3.23]
[1765191194555,164.95400009,139.0,138.93,3.23]
[1765191194758,164.95400009,139.0,138.93,9.89610275]
[1765191195054,100.7264,138.98,138.92,6.66610275]
[1765191195350,0.05181127,138.96,138.94,0.04754648]
[1765191196251,0.05181127,138.96,138.94,3.27754648]
[1765191201052,0.05181127,138.96,138.94,9.94364923]
[1765191201247,6.52801127,138.96,138.94,9.98364923]
[1765191203561,6.52801127,138.96,138.94,3.31754648]
[1765191203856,6.52801127,138.96,138.94,0.04754648]
[1765191204259,9.56831136,138.96,138.94,0.04754648]
[1765191207362,6.4776,138.93,138.91,9.93610275]
[1765191208964,6.4776,138.93,138.91,3.27]
[1765191209956,6.4776,138.93,138.9,9.93610275]
[1765191210155,6.52795249,138.93,138.9,9.93610275]
[1765191210469,6.4781,138.92,138.9,6.66610275]
[1765191210658,61.2,138.92,138.89,9.93610275]
[1765191210857,61.24910415,138.92,138.89,9.93610275]
[1765191211056,6.4786,138.91,138.89,6.66610275]
[1765191211465,100.7771,138.91,138.88,6.66610275]
[1765191211760,6.4799,138.88,138.86,6.66610275]
[1765191211962,6.4799,138.88,138.83,3.27]
[1765191211963,61.24676216,138.88,138.85,6.66610275]
[1765191212363,61.24676216,138.88,138.86,3.27]
[1765191212561,0.04676216,138.88,138.86,3.27]
[1765191216672,6.52676216,138.88,138.85,3.27]
[1765191223872,0.04676216,138.88,138.85,3.27]
[1765191225475,0.04676216,138.88,138.86,3.27]
[1765191236081,0.04676216,138.88,138.86,9.7507]
[1765191236282,0.04676216,138.88,138.87,3.02]
[1765191245087,8.4247572,138.93,138.88,3.0]
[1765191245482,1.9470572,138.93,138.88,3.0]
[1765191246093,0.04676099,138.92,138.9,3.0]
[1765191246585,6.52476099,138.92,138.9,3.0]
[1765191247386,0.04676099,138.92,138.9,3.0]
[1765191253301,1.9470572,138.91,138.9,3.0]
[1765191254500,8.4255572,138.91,138.9,3.0]
[1765191261303,8.4255572,138.91,138.89,3.26657046]
[1765191261504,6.4789,138.9,138.89,3.26657046]
[1765191262207,6.4789,138.9,138.89,0.04657046]
[1765191262893,6.4798,138.88,138.87,3.772e-05]
[1765191263097,1.9470572,138.88,138.83,3.22]
[1765191263296,1.9470572,138.85,138.83,3.22]
[1765191263907,1.99774776,138.85,138.83,3.22]
[1765191264600,8.47914776,138.85,138.83,3.22]
[1765191265806,8.47914776,138.85,138.78,1.9470572]
[1765191265807,6.482,138.84,138.82,3.22]
[1765191266005,1.9470572,138.83,138.82,3.22]
[1765191267697,6.482,138.84,138.82,3.22]
[1765191268103,0.05069056,138.85,138.82,3.22]
[1765191268301,0.05069056,138.85,138.83,3.22]
[1765191270211,6.53199056,138.85,138.83,3.22]
[1765191271004,0.05069056,138.85,138.83,3.22]
[1765191274105,0.05069056,138.85,138.83,5.1670572]
[1765191274307,0.05069056,138.85,138.84,3.22]
[1765191282117,0.05069056,138.85,138.84,9.7017]
[1765191287020,0.05069056,138.85,138.84,3.22]
[1765191306646,61.24,138.89,138.85,3.09]
[1765191306647,6.4803,138.87,138.85,3.09]
[1765191306847,61.24,138.89,138.85,3.09]
[1765191307340,61.24,138.89,138.86,3.09]
[1765191307648,61.29366684,138.89,138.86,3.13662168]
[1765191308644,67.77336684,138.89,138.86,3.13662168]
[1765191310347,61.29366684,138.89,138.86,3.13662168]
[1765191311343,6.4803,138.88,138.86,3.13662168]
[1765191314047,61.29366684,138.89,138.86,3.13662168]
[1765191317850,67.77306684,138.89,138.86,3.13662168]
[1765191318752,61.29366684,138.89,138.86,3.13662168]
[1765191320551,67.77306684,138.89,138.86,3.13662168]
[1765191322952,67.77306684,138.89,138.87,9.72131237]
[1765191324753,67.77306684,138.89,138.88,3.02]
[1765191325053,61.29366684,138.89,138.88,3.02]
[1765191326350,61.29366684,138.89,138.87,6.70131237]
[1765191326548,61.29366684,138.89,138.86,9.76793405]
[1765191327352,67.77346684,138.89,138.86,9.76793405]
[1765191327851,6.4799,138.88,138.86,6.74793405]
[1765191328152,61.29366684,138.89,138.86,0.04662168]
[1765191328746,3.04327462,138.87,138.86,0.04662168]
[1765191329456,9.52357462,138.87,138.86,0.04662168]
[1765191331152,61.29366684,138.89,138.86,0.04662168]
[1765191331153,61.24,138.88,138.86,0.04662168]
[1765191331658,67.7199,138.88,138.86,3.06662168]
[1765191334561,61.24,138.88,138.86,3.06662168]
[1765191335858,61.24,138.88,138.86,9.76793405]
[1765191337351,67.7201,138.88,138.86,9.76793405]
[1765191337663,67.7201,138.88,138.86,0.04662168]
[1765191338565,67.7201,138.88,138.86,3.06662168]
[1765191339064,67.7201,138.88,138.86,0.04662168]
[1765191340169,67.7201,138.88,138.86,3.06662168]
[1765191340353,67.7201,138.88,138.86,9.76793405]
[1765191341871,67.7201,138.88,138.87,3.02]
[1765191342072,61.24,138.88,138.87,3.02]
[1765191343576,61.24,138.88,138.87,9.72131237]
[1765191345983,0.05366684,138.89,138.87,9.72131237]
[1765191346282,0.05366684,138.89,138.88,3.02]
[1765191347183,6.53346684,138.89,138.87,5.06298702]
[1765191353680,6.53346684,138.89,138.86,3.09662168]
[1765191353879,6.48,138.88,138.86,0.04662168]
[1765191354086,0.05366684,138.89,138.86,0.04662168]
[1765191354984,6.4803,138.87,138.86,0.04662168]
[1765191357488,6.4803,138.87,138.86,3.09662168]
[1765191358890,6.4803,138.87,138.86,0.04662168]
[1765191363286,8.48071256,138.89,138.86,3.17662168]
[1765191366894,6.53336684,138.89,138.86,3.17662168]
[1765191369309,6.4799,138.88,138.86,3.17662168]
[1765191370398,8.42724572,138.88,138.86,0.04662168]
[1765191370591,6.4803,138.87,138.86,0.04662168]
[1765191371596,6.4817,138.84,138.81,11.97263722]
[1765191371993,6.4823,138.83,138.81,11.97263722]
[1765191372503,6.52777287,138.83,138.81,11.97263722]
[1765191374002,8.47511859,138.83,138.81,11.97263722]
[1765191374707,8.47511859,138.83,138.81,8.84263722]
[1765191375407,8.47511859,138.83,138.81,3.13]
[1765191377206,1.99281859,138.83,138.8,8.84263722]
[1765191377507,6.483,138.82,138.79,11.97263722]
[1765191380406,6.483,138.82,138.79,3.13]
[1765191381207,6.4832,138.81,138.79,3.13]
[1765191385302,6.4827,138.82,138.79,3.13]
[1765191390112,6.4831,138.81,138.79,3.13]
[1765191390706,0.04547287,138.83,138.79,3.13]
[1765191391516,6.52787287,138.83,138.79,3.13]
[1765191394619,1.94734572,138.81,138.78,8.84263722]
[1765191394820,1.94734572,138.79,138.76,11.99263722]
[1765191395011,1.99339888,138.79,138.75,11.99263722]
[1765191395213,0.04948142,138.78,138.75,3.15]
[1765191395419,6.53408142,138.78,138.75,3.15]
[1765191395917,6.53408142,138.78,138.74,3.15]
[1765191396520,1.94734572,138.75,138.71,3.15]
[1765191396719,1.94734572,138.73,138.71,3.15]
[1765191397111,0.04561903,138.74,138.71,3.15]
[1765191397819,0.04561903,138.74,138.72,3.15]
[1765191398013,0.04561903,138.74,138.73,5.09734572]
[1765191400016,0.04561903,138.74,138.71,3.15]
[1765191400419,1.94734572,138.73,138.71,3.15]
[1765191405819,1.94734572,138.73,138.68,3.15]
[1765191406024,1.94734572,138.71,138.68,3.15]
[1765191406227,2.00057445,138.71,138.68,3.15]
[1765191407725,100.8954,138.75,138.69,1.94734572]
[1765191407726,1.94734572,138.75,138.69,1.94734572]
[1765191407927,1.94734572,138.75,138.7,3.15]
[1765191408829,0.04734739,138.74,138.72,3.32]
[1765191411526,0.04734739,138.74,138.73,3.32]
[1765191413838,6.4848,138.78,138.73,3.32]
[1765191415038,0.04571279,138.77,138.75,3.32]
[1765191417639,6.4855,138.76,138.74,0.05070878]
[1765191417846,1.94734572,138.75,138.74,0.05070878]
[1765191419450,63.22734572,138.75,138.74,0.05070878]
[1765191422666,64.32951289,138.75,138.74,0.05070878]
[1765191423264,6.4855,138.76,138.74,3.29070878]
[1765191424659,6.53071279,138.77,138.74,3.29070878]
[1765191424860,0.04571279,138.77,138.74,3.29070878]
[1765191425454,6.4855,138.76,138.74,3.29070878]
[1765191438975,6.4859,138.75,138.74,0.05070878]
[1765191440985,0.04571279,138.77,138.74,9.8645973]
[1765191442480,6.4855,138.76,138.74,9.8645973]
[1765191446086,6.4855,138.76,138.74,3.17070878]
[1765191446287,6.4859,138.75,138.74,0.05070878]
[1765191451391,6.4859,138.75,138.74,3.17070878]
[1765191451595,6.4859,138.75,138.74,0.05070878]
[1765191457191,6.4859,138.75,138.74,3.17070878]
[1765191457386,61.34571279,138.77,138.74,9.8645973]
[1765191458583,6.4855,138.76,138.74,9.8645973]
[1765191458788,6.4855,138.76,138.74,3.17070878]
[1765191459296,61.34571279,138.77,138.76,3.12]
[1765191459790,6.53071279,138.77,138.76,3.12]
[1765191461098,0.04571279,138.77,138.76,3.12]
[1765191467207,6.53071279,138.77,138.76,3.12]
[1765191467695,0.04571279,138.77,138.76,3.12]
[1765191467895,0.04571279,138.77,138.76,9.81388852]
[1765191468092,0.04571279,138.77,138.76,3.12]
[1765191468693,61.28,138.8,138.77,3.14]
[1765191468694,67.7636,138.8,138.77,3.14]
[1765191468906,67.7636,138.8,138.79,3.14]
[1765191469803,6.4836,138.8,138.79,3.14]
[1765191472893,6.484,138.79,138.78,6.76525028]
[1765191473100,6.484,138.79,138.78,0.05352512]
[1765191480607,0.05261652,138.81,138.78,3.12352512]
[1765191480806,67.81611652,138.81,138.78,3.12352512]
[1765191481108,67.81611652,138.81,138.78,9.83525028]
[1765191481409,67.81611652,138.81,138.78,3.12352512]
[1765191482012,61.33261652,138.81,138.78,3.12352512]
[1765191482798,61.33261652,138.81,138.78,9.83525028]
[1765191484714,63.2820648,138.81,138.78,9.83525028]
[1765191486315,63.2820648,138.81,138.78,3.12352512]
[1765191487018,63.2820648,138.81,138.78,9.60792512]
[1765191488020,63.2820648,138.81,138.78,3.12352512]
[1765191489919,1.94944828,138.84,138.8,3.07]
[1765191490819,0.0486856,138.83,138.81,3.12231467]
[1765191492520,1.94944828,138.82,138.81,0.05231467]
[1765191497932,0.0486856,138.83,138.81,3.15231467]
[1765191498237,0.0486856,138.83,138.82,3.1]
[1765191499640,0.0486856,138.83,138.82,9.81172516]
[1765191499829,63.20944828,138.89,138.83,3.1]
[1765191500136,6.4805,138.87,138.84,3.1]
[1765191500836,0.04790258,138.87,138.84,3.1536724]
[1765191502033,6.4808,138.86,138.84,3.1536724]
[1765191504928,6.4808,138.86,138.84,0.0536724]
[1765191508246,67.7408,138.86,138.84,0.0536724]
[1765191509350,1.94944828,138.85,138.84,0.0536724]
[1765191510047,1.94944828,138.85,138.79,9.81172516]
[1765191510448,1.94944828,138.83,138.79,9.81172516]
[1765191511042,0.05244804,138.82,138.8,0.05102119]
[1765191512058,0.05244804,138.82,138.8,3.15102119]
[1765191517948,0.05244804,138.82,138.81,3.1]
[1765191518651,0.05244804,138.82,138.81,9.81172516]
[1765191518956,0.05244804,138.82,138.8,3.15102119]
[1765191520451,6.53524804,138.82,138.8,3.15102119]
[1765191522256,6.53524804,138.82,138.81,3.1]
[1765191529662,6.53524804,138.82,138.8,6.76274635]
[1765191529966,6.53524804,138.82,138.8,0.05102119]
[1765191530467,6.4831,138.81,138.8,0.05102119]
[1765191532667,6.4831,138.81,138.8,3.05102119]
[1765191532869,0.05244804,138.82,138.8,3.05102119]
[1765191535070,6.4831,138.81,138.8,0.05102119]
[1765191537474,8.43254828,138.81,138.8,0.05102119]
[1765191546780,6.4831,138.81,138.8,0.05102119]
[1765191552883,67.7631,138.81,138.8,0.05102119]
[1765191553472,6.4831,138.81,138.8,0.05102119]
[1765191553672,67.7631,138.81,138.8,0.05102119]
[1765191557383,6.4831,138.81,138.8,0.05102119]
[1765191557678,67.7631,138.81,138.8,0.05102119]
[1765191558786,6.4831,138.81,138.8,0.05102119]
[1765191558985,67.7631,138.81,138.8,0.05102119]
[1765191559676,67.7631,138.81,138.8,3.21102119]
[1765191560587,67.7631,138.81,138.8,0.05102119]
[1765191561179,6.484,138.79,138.78,6.71172516]
[1765191562084,6.484,138.79,138.78,9.87172516]
[1765191565291,6.484,138.79,138.77,6.7584981]
[1765191565882,6.4845,138.78,138.77,6.7584981]
[1765191568186,6.4845,138.78,138.77,0.04677294]
[1765191577290,67.7645,138.78,138.77,0.04677294]
[1765191582307,6.4845,138.78,138.77,0.04677294]
[1765191582503,67.7645,138.78,138.77,0.04677294]
[1765191583701,6.4845,138.78,138.77,0.04677294]
[1765191583904,67.7645,138.78,138.77,0.04677294]
[1765191601817,6.4854,138.76,138.75,6.70982478]
[1765191602316,61.28,138.78,138.76,3.08]
[1765191602317,6.485,138.77,138.76,3.08]
[1765191602523,61.28,138.78,138.77,3.08]
[1765191603214,61.28,138.78,138.76,9.84001845]
[1765191604219,61.28,138.78,138.77,3.08]
[1765191604512,67.7645,138.78,138.76,9.84001845]
[1765191609227,0.05335844,138.79,138.77,9.78982478]
[1765191609424,61.33335844,138.79,138.78,3.08]
[1765191610020,0.05335844,138.79,138.78,9.78982478]
[1765191610427,61.28,138.81,138.79,3.08]
[1765191610627,61.28,138.81,138.8,9.78843633]
[1765191610927,61.28,138.85,138.81,3.08]
[1765191611119,61.28,138.85,138.82,3.08]
[1765191611318,61.28,138.85,138.82,3.13493934]
[1765191611520,61.32972646,138.85,138.82,3.13493934]
[1765191612035,61.32972646,138.85,138.82,0.05493934]
[1765191612036,8.43177701,138.84,138.82,0.05493934]
[1765191626242,6.4819,138.84,138.82,3.04493934]
[1765191626447,61.28,138.84,138.82,3.04493934]
[1765191628347,67.7617,138.84,138.82,0.05493934]
[1765191630351,69.71157701,138.84,138.82,0.05493934]
[1765191636360,6.4822,138.83,138.82,0.05493934]
[1765191649872,63.22987701,138.84,138.82,3.23493934]
[1765191651375,63.22987701,138.84,138.82,0.05493934]
[1765191651572,69.71167701,138.84,138.82,0.05493934]
[1765191655263,69.71167701,138.84,138.82,6.75999958]
[1765191655467,164.06177701,138.84,138.8,6.7088759]
[1765191655673,164.06177701,138.84,138.78,8.90876878]
[1765191655674,1.94987701,138.81,138.78,12.08876878]
[1765191655871,63.20987701,138.81,138.78,12.08876878]
[1765191656077,63.20987701,138.81,138.78,3.18]
[1765191656477,69.74114369,138.81,138.78,3.23175521]
[1765191658883,6.4837,138.8,138.78,0.05175521]
[1765191660381,6.484,138.79,138.78,0.05175521]
[1765191660579,8.43387701,138.79,138.78,0.05175521]
[1765191665782,6.4852,138.77,138.72,143.39720302]
[1765191665982,1.94987701,138.75,138.73,3.18]
[1765191666787,2.00500106,138.75,138.73,3.22746279]
[1765191667087,2.00500106,138.75,138.73,0.04746279]
[1765191668691,0.05512405,138.75,138.73,0.04746279]
[1765191670092,6.54112405,138.75,138.73,0.04746279]
[1765191670490,3.04875807,138.74,138.73,0.04746279]
[1765191673297,6.4871,138.73,138.69,3.18]
[1765191673491,61.28,138.72,138.69,3.18]
[1765191673701,67.7674,138.72,138.69,3.18]
[1765191674297,67.81342368,138.72,138.69,3.18]
[1765191675187,64.37478175,138.72,138.67,6.47175725]
[1765191676496,6.4884,138.7,138.67,6.47175725]
[1765191677297,6.4888,138.69,138.67,3.29175725]
[1765191677688,64.34875807,138.68,138.67,3.29175725]
[1765191679591,64.34875807,138.68,138.67,1.23474324]
[1765191679993,64.34875807,138.68,138.63,3.18]
[1765191679994,6.4899,138.67,138.63,3.18]
[1765191680296,64.34875807,138.68,138.63,3.18]
[1765191680804,6.4907,138.65,138.6,3.13]
[1765191680997,0.05147453,138.64,138.6,3.13]
[1765191681999,6.54257453,138.64,138.6,3.13]
[1765191682701,67.84257453,138.64,138.6,3.13]
[1765191683205,6.4917,138.63,138.6,3.13]
[1765191684494,6.4922,138.62,138.58,3.13]
[1765191684703,0.05346991,138.61,138.58,3.13]
[1765191685597,61.32,138.6,138.54,3.13]
[1765191686295,61.32,138.6,138.53,3.13]
[1765191686296,3.04875807,138.58,138.53,3.13]
[1765191686496,3.04875807,138.58,138.5,3.13]
[1765191686799,9.54365807,138.56,138.5,3.13]
[1765191687003,61.32,138.55,138.5,3.13]
[1765191687201,0.05419803,138.54,138.5,3.13]
[1765191687793,0.05419803,138.54,138.44,3.04875807]
[1765191687794,3.1029561,138.54,138.45,3.13]
[1765191688008,0.05139138,138.51,138.45,3.13]
[1765191688303,61.37139138,138.51,138.46,3.13]
[1765191688503,3.10194448,138.5,138.46,3.13]
[1765191689103,0.05318641,138.5,138.46,3.13]
[1765191692004,6.4944,138.57,138.49,3.13]
[1765191692202,61.36,138.57,138.49,3.13]
[1765191692404,101.0319,138.56,138.49,3.13]
[1765191692805,6.4956,138.55,138.49,3.13]
[1765191693009,6.4956,138.55,138.48,3.04875807]
[1765191693010,0.04778143,138.53,138.52,3.13]
[1765191694605,61.36,138.57,138.52,3.13]
[1765191694807,104.05245807,138.6,138.52,3.13]
[1765191695208,67.8536,138.59,138.52,3.13]
[1765191695510,67.8536,138.59,138.53,3.13]
[1765191695705,0.05377238,138.57,138.55,3.18186438]
[1765191696306,0.05377238,138.57,138.55,0.05186438]
[1765191697710,0.05377238,138.57,138.55,3.18186438]
[1765191698710,3.04875807,138.66,138.57,3.13]
[1765191698907,61.36,138.63,138.57,3.13]
[1765191699112,67.8516,138.63,138.57,3.13]
[1765191699311,61.36,138.63,138.59,3.13]
[1765191699612,0.04599761,138.62,138.6,3.17948881]
[1765191700011,0.04599761,138.62,138.6,0.04948881]
[1765191700208,0.04599761,138.62,138.6,3.17948881]
[1765191700411,0.04599761,138.62,138.61,3.13]
[1765191703417,0.04599761,138.62,138.6,0.04948881]
[1765191704313,6.53819761,138.62,138.6,0.04948881]
[1765191705017,6.4937,138.59,138.55,3.13]
[1765191705217,67.8537,138.59,138.55,3.13]
[1765191705820,0.04880886,138.58,138.56,0.04948786]
[1765191706622,0.04880886,138.58,138.56,3.17948786]
[1765191707122,0.04880886,138.58,138.56,0.04948786]
[1765191709523,6.54280886,138.58,138.56,0.04948786]
[1765191711124,0.04880886,138.58,138.56,3.33948786]
[1765191716226,0.04880886,138.58,138.56,0.04948786]
[1765191716810,6.54280886,138.58,138.56,0.04948786]
[1765191720522,6.4964,138.53,138.48,3.24]
[1765191720722,61.38,138.52,138.48,3.24]
[1765191721333,109.5344867,138.58,138.48,3.24]
[1765191721633,0.04929223,138.54,138.52,3.28970524]
[1765191729637,6.4947,138.57,138.53,3.24]
[1765191730638,0.04834599,138.56,138.53,3.24]
[1765191732840,6.54324599,138.56,138.53,3.24]
[1765191734042,0.04834599,138.56,138.53,3.24]
[1765191734840,0.04834599,138.56,138.53,9.736]
[1765191735241,0.04834599,138.56,138.54,3.24]
[1765191735643,0.04834599,138.56,138.54,9.7355]
[1765191735843,1.95576268,138.62,138.56,3.24]
[1765191736537,8.44796268,138.62,138.56,3.24]
[1765191736737,1.95576268,138.62,138.56,3.24]
[1765191736947,0.04965089,138.6,138.58,3.29438351]
[1765191738444,2.00541357,138.6,138.58,0.05438351]
[1765191739345,8.49851357,138.6,138.58,0.05438351]
[1765191739540,8.49851357,138.6,138.58,3.16438351]
[1765191739734,0.04965089,138.6,138.58,3.16438351]
[1765191742452,0.04965089,138.6,138.58,9.65818351]
[1765191742650,6.4916,138.63,138.59,3.11]
[1765191743743,0.05166336,138.62,138.59,3.11]
[1765191746053,6.54366336,138.62,138.59,3.11]
[1765191751756,6.4925,138.61,138.59,3.11]
[1765191753359,0.05166336,138.62,138.59,3.11]
[1765191753760,2.00742604,138.62,138.58,3.16438351]
[1765191753960,6.493,138.6,138.58,3.16438351]
[1765191754262,8.44876268,138.6,138.58,0.05438351]
[1765191754456,61.36,138.59,138.58,0.05438351]
[1765191755265,61.36,138.61,138.58,3.16438351]
[1765191756458,67.8525,138.61,138.58,3.16438351]
[1765191757162,1.95576268,138.6,138.58,0.05438351]
[1765191758067,8.44876268,138.6,138.58,0.05438351]
[1765191764476,101.0105,138.59,138.52,9.80774642]
[1765191764773,1.95576268,138.55,138.52,3.11]
[1765191765268,2.00216406,138.55,138.52,3.16032586]
[1765191765573,8.49746406,138.55,138.52,3.16032586]
[1765191765872,2.00216406,138.55,138.52,3.16032586]
[1765191769362,0.04640138,138.55,138.52,9.65692586]
[1765191769563,0.04640138,138.55,138.53,3.21]
[1765191770476,2.00216406,138.55,138.53,3.21]
[1765191772580,8.49746406,138.55,138.53,3.21]
[1765191773083,6.54170138,138.55,138.53,3.21]
[1765191775773,8.49746406,138.55,138.53,3.21]
[1765191776284,2.00216406,138.55,138.53,3.21]
[1765191776582,0.04640138,138.55,138.53,3.21]
[1765191777580,2.00216406,138.55,138.52,3.26032586]
[1765191778282,6.4958,138.54,138.52,3.26032586]
[1765191779882,1.95576268,138.53,138.52,0.05032586]
[1765191780473,1.95576268,138.53,138.52,3.36032586]
[1765191780673,2.00216406,138.55,138.52,3.36032586]
[1765191785084,8.49746406,138.55,138.52,3.36032586]
[1765191785386,2.00216406,138.55,138.52,3.36032586]
[1765191785983,0.04640138,138.55,138.53,3.31]
[1765191786184,0.04640138,138.55,138.53,10.00774642]
[1765191786378,63.33576268,138.59,138.55,3.31]
[1765191786586,1.95576268,138.57,138.55,3.31]
[1765191787384,2.0073406,138.57,138.55,3.36143985]
[1765191787684,8.5017406,138.57,138.55,3.36143985]
[1765191788388,8.5017406,138.57,138.55,0.05143985]
[1765191792697,6.54597792,138.57,138.55,0.05143985]
[1765191793593,3.05709635,138.56,138.55,0.05143985]
[1765191795000,104.09029635,138.56,138.5,3.31]
[1765191795199,61.38,138.55,138.5,3.31]
[1765191796102,6.4965,138.53,138.51,3.35869007]
[1765191796397,0.04640703,138.54,138.51,3.35869007]
[1765191798286,0.04640703,138.54,138.51,0.04869007]
[1765191798500,6.4964,138.53,138.51,0.04869007]
[1765191800986,3.05709635,138.52,138.51,0.04869007]
[1765191801387,4.49709635,138.52,138.51,0.04869007]
[1765191801600,101.0677,138.51,138.46,3.3]
[1765191801897,61.38,138.5,138.46,3.3]
[1765191802498,6.4986,138.48,138.46,3.3]
[1765191802698,6.5503617,138.48,138.46,3.34780699]
[1765191804698,6.5503617,138.48,138.46,0.04780699]
[1765191810007,6.5503617,138.48,138.46,3.34780699]
[1765191810202,67.9503617,138.48,138.46,3.34780699]
[1765191811315,67.9503617,138.48,138.46,0.04780699]
[1765191812716,67.9503617,138.48,138.46,3.34780699]
[1765191813214,67.9503617,138.48,138.46,0.04780699]
[1765191813411,71.00745805,138.48,138.46,0.04780699]
[1765191813611,67.9503617,138.48,138.46,0.04780699]